bitfinex-derivatives/quotes_ETHF0:USTF0_20251119
["timestamp","ask_amount","ask_price","bid_price","bid_amount"]
[1763551617341,3.21265051,3093.4,3093.1,0.76573]
[1763551617342,0.00485051,3093.4,3093.3,0.7657]
[1763551617547,0.00353623,3093.9,3093.8,0.2416]
[1763551617548,0.52753623,3093.9,3093.8,0.2416]
[1763551617845,0.52753623,3093.9,3093.8,0.76562]
[1763551618042,0.52753623,3093.9,3093.8,0.2416]
[1763551618345,0.52753623,3093.9,3093.8,0.76562]
[1763551619053,0.00353623,3093.9,3093.8,0.76562]
[1763551620246,0.00353623,3093.9,3093.8,0.2416]
[1763551620443,0.00353623,3093.9,3093.8,0.76562]
[1763551625760,3.21265051,3094.2,3094.1,0.76986]
[1763551626055,0.00485051,3094.2,3094.1,3.97766]
[1763551626258,0.52880051,3094.2,3094.1,3.97766]
[1763551626760,0.53230045,3094.2,3094.1,3.98089959]
[1763551628056,0.53230045,3094.2,3094.1,3.45693959]
[1763551628654,0.53230045,3094.2,3094.1,3.98089959]
[1763551629863,1.65728603,3094.2,3094.1,0.00323959]
[1763551634065,0.53230045,3094.2,3094.1,0.24913959]
[1763551634964,0.53230045,3094.2,3094.1,0.00323959]
[1763551636660,0.53230045,3094.2,3094.1,0.77309959]
[1763551637062,0.00835045,3094.2,3094.1,0.77309959]
[1763551637265,3.73168,3094.6,3094.5,0.9037]
[1763551637266,3.2078,3094.6,3094.5,0.9037]
[1763551637461,3.2078,3094.6,3094.5,0.6578]
[1763551637767,3.2078,3094.6,3094.5,0.9037]
[1763551638166,3.21095601,3094.6,3094.5,0.9037]
[1763551638861,3.73483601,3094.6,3094.5,0.1339]
[1763551639063,4.50908514,3094.6,3094.5,0.1339]
[1763551639265,0.52395,3094.2,3094.1,0.52719959]
[1763551639668,0.52395,3094.2,3094.1,0.00323959]
[1763551641371,1.2981634,3094.2,3094.1,0.77309959]
[1763551641571,1.2981634,3094.2,3094.1,0.24913959]
[1763551642973,1.2981634,3094.2,3094.1,0.00323959]
[1763551643175,1.2981634,3094.2,3094.1,0.24913959]
[1763551643867,1.2981634,3094.2,3094.1,0.00323959]
[1763551647576,2.45421801,3094.2,3094.1,0.00323959]
[1763551654174,1.2981634,3094.2,3094.1,0.00323959]
[1763551655185,5.66201801,3094.2,3094.1,0.00323959]
[1763551657577,0.52403,3093.7,3093.6,3.2078]
[1763551657886,2.42322898,3093.7,3093.6,3.2078]
[1763551658582,2.42322898,3093.7,3093.6,3.21153168]
[1763551661690,2.42322898,3093.7,3093.6,0.00373168]
[1763551664390,2.42322898,3093.7,3093.5,0.14755051]
[1763551664391,0.52405,3093.6,3093.5,0.01997722]
[1763551664589,1.2982634,3093.6,3093.5,0.01997722]
[1763551665387,1.2982634,3093.6,3093.5,0.02344085]
[1763551666300,1.2982634,3093.6,3093.5,0.00831414]
[1763551666499,0.52413,3093.1,3093.0,0.1427]
[1763551667395,0.52413,3093.1,3093.0,0.14611794]
[1763551669797,1.29986541,3093.1,3093.0,0.14611794]
[1763551671802,1.29986541,3093.1,3093.0,0.67026794]
[1763551672703,1.29986541,3093.1,3093.0,0.14611794]
[1763551674003,0.77573541,3093.1,3093.0,0.91236794]
[1763551674198,0.52413,3093.1,3093.0,0.91236794]
[1763551674606,0.52413,3093.1,3093.0,0.38821794]
[1763551674798,1.2997489,3093.1,3093.0,0.38821794]
[1763551675310,1.2997489,3093.1,3093.0,0.91236794]
[1763551676604,0.52413,3093.1,3093.0,0.91236794]
[1763551679911,0.52413,3093.1,3093.0,0.38821794]
[1763551680107,0.52413,3093.1,3093.0,0.91236794]
[1763551680504,0.52413,3093.1,3093.0,0.67026794]
[1763551680703,0.52413,3093.1,3093.0,0.91236794]
[1763551681809,0.5241,3093.4,3093.3,0.76547]
[1763551681998,1.30039063,3093.4,3093.3,0.76547]
[1763551682803,0.52413,3093.1,3093.0,0.14611794]
[1763551683015,2.45161559,3093.1,3093.0,0.14611794]
[1763551683814,2.45161559,3093.1,3093.0,0.00341794]
[1763551684116,2.45161559,3093.1,3093.0,0.13981794]
[1763551686114,3.60739926,3093.1,3093.0,0.13981794]
[1763551686317,2.45161559,3093.1,3093.0,0.13981794]
[1763551687112,3.60739926,3093.1,3093.0,0.13981794]
[1763551688015,2.45161559,3093.1,3093.0,0.13981794]
[1763551690213,3.60739926,3093.1,3093.0,0.13981794]
[1763551690421,0.52419,3092.8,3092.7,0.00485051]
[1763551690717,2.45167559,3092.8,3092.7,0.00485051]
[1763551691117,2.45167559,3092.8,3092.7,0.24625051]
[1763551691318,2.45167559,3092.8,3092.5,0.12224156]
[1763551691319,0.52422,3092.6,3092.5,0.12224156]
[1763551691721,1.30051063,3092.6,3092.5,0.12535109]
[1763551695123,1.68000367,3092.6,3092.5,0.12535109]
[1763551695621,2.4562943,3092.6,3092.5,0.12535109]
[1763551696310,1.30051063,3092.6,3092.5,0.12535109]
[1763551697424,1.30051063,3092.6,3092.5,0.36675109]
[1763551697814,1.30051063,3092.6,3092.5,0.12535109]
[1763551707929,1.30051063,3092.6,3092.5,0.00310953]
[1763551708126,2.4562943,3092.6,3092.5,0.00310953]
[1763551708927,2.4562943,3092.6,3092.5,0.13910953]
[1763551712122,1.30051063,3092.6,3092.5,0.13910953]
[1763551715631,1.30051063,3092.6,3092.5,0.36150953]
[1763551715823,1.15609851,3092.9,3092.5,0.88574953]
[1763551716024,0.52415,3093.0,3092.9,0.2371]
[1763551723128,0.52419,3092.8,3092.7,3.2078]
[1763551724935,0.52419,3092.8,3092.7,3.4449]
[1763551729432,0.52419,3092.8,3092.7,3.9691]
[1763551729635,0.52419,3092.8,3092.7,3.4449]
[1763551730532,0.00485051,3093.1,3093.0,0.3744]
[1763551731031,0.76848051,3093.1,3093.0,0.3744]
[1763551731432,0.76369,3092.8,3092.7,3.4449]
[1763551732535,0.52419,3092.8,3092.7,3.4449]
[1763551734633,0.76369,3092.8,3092.7,3.4449]
[1763551735231,0.76369,3092.8,3092.7,0.2371]
[1763551736534,0.7637,3092.7,3092.6,3.4449]
[1763551738241,1.53643682,3092.7,3092.6,3.4449]
[1763551740939,0.5242,3092.7,3092.6,3.96912]
[1763551741533,1.29775984,3092.7,3092.6,3.96912]
[1763551741734,1.29775984,3092.7,3092.6,3.4449]
[1763551742340,0.77355984,3092.7,3092.6,3.96912]
[1763551742534,0.52417,3092.9,3092.8,0.52417]
[1763551742739,0.52417,3092.9,3092.8,0.76657]
[1763551742936,1.29795764,3092.9,3092.8,0.76657]
[1763551743441,0.52417,3092.9,3092.8,0.52417]
[1763551743640,0.52417,3092.9,3092.8,0.76657]
[1763551744845,0.00485051,3093.1,3093.0,0.90635]
[1763551744846,0.52900051,3093.1,3093.0,0.90635]
[1763551745237,1.30335915,3093.1,3093.0,0.90635]
[1763551746946,1.30335915,3093.1,3093.0,0.3822]
[1763551747148,2.65636738,3093.1,3093.0,0.3822]
[1763551748040,2.42916738,3093.1,3093.0,0.3822]
[1763551748240,2.65636738,3093.1,3093.0,0.3822]
[1763551750448,0.75137,3092.9,3092.8,0.76658]
[1763551750742,1.52572864,3092.9,3092.8,0.2424]
[1763551751250,0.5242,3092.7,3092.6,3.97442]
[1763551751733,1.29855864,3092.7,3092.6,3.97442]
[1763551754047,1.52575864,3092.7,3092.6,3.4502]
[1763551755243,0.75142,3092.6,3092.5,0.00310953]
[1763551755642,1.52577864,3092.6,3092.5,0.24550953]
[1763551755843,1.52577864,3092.6,3092.5,0.00310953]
[1763551758555,0.75147,3092.3,3092.2,3.21265051]
[1763551758754,1.87727823,3092.3,3092.2,3.21265051]
[1763551758954,2.65163687,3092.3,3092.2,3.21265051]
[1763551759551,2.65408022,3092.3,3092.2,3.21582363]
[1763551759750,3.81017873,3092.3,3092.2,0.00802363]
[1763551760056,2.65408022,3092.3,3092.2,0.00802363]
[1763551761555,2.65408022,3092.3,3091.3,3.4502]
[1763551761556,0.75162,3091.4,3091.3,3.4502]
[1763551762154,0.75162,3091.4,3091.3,3.97464]
[1763551762353,0.2272,3091.4,3091.3,3.97464]
[1763551762548,1.12580823,3091.5,3091.3,3.97464]
[1763551762549,0.52441,3091.5,3091.4,0.2424]
[1763551762756,3.435,3092.0,3091.5,0.66419]
[1763551762950,0.52439,3091.6,3091.5,0.3822]
[1763551763161,0.75159,3091.6,3091.5,0.3822]
[1763551765165,0.75262,3091.4,3091.3,3.97260318]
[1763551765457,0.75262,3091.4,3091.3,3.44816318]
[1763551765764,0.75262,3091.4,3091.3,3.21046318]
[1763551766955,0.75262,3091.4,3091.3,3.44816318]
[1763551767459,0.52442,3091.4,3091.3,3.44816318]
[1763551768958,0.75262,3091.4,3091.3,3.44816318]
[1763551772165,0.75262,3091.4,3091.3,3.45646318]
[1763551774262,0.75262,3091.4,3091.3,3.21046318]
[1763551776562,0.75262,3091.4,3091.3,0.00266318]
[1763551776864,0.76637,3091.1,3091.0,0.00485051]
[1763551777061,1.89217823,3091.1,3091.0,0.00485051]
[1763551777661,1.89217823,3091.1,3090.0,1.26560823]
[1763551777662,3.2344,3091.0,3090.0,0.1437]
[1763551777862,1.65044823,3090.1,3090.0,0.39214204]
[1763551778057,1.65371314,3090.1,3090.0,0.39214204]
[1763551778365,1.65371314,3090.1,3090.0,0.14614204]
[1763551778869,0.00326491,3090.1,3090.0,0.39214204]
[1763551779063,0.52790491,3090.1,3090.0,0.39214204]
[1763551779767,0.52790491,3090.1,3090.0,0.14614204]
[1763551781561,0.52790491,3090.1,3090.0,0.39214204]
[1763551782168,0.00326491,3090.1,3090.0,0.39214204]
[1763551782358,0.00326491,3090.1,3090.0,0.91680204]
[1763551782557,4.85820823,3090.4,3090.3,0.246]
[1763551782761,0.52464,3090.1,3090.0,0.39214204]
[1763551782973,1.65044823,3090.1,3090.0,0.39214204]
[1763551783666,1.65296853,3090.1,3090.0,0.39214204]
[1763551784270,2.25413676,3090.1,3089.7,0.00485051]
[1763551784571,0.52481,3089.1,3088.3,0.52493]
[1763551784868,4.85841823,3089.1,3088.3,0.52493]
[1763551785064,4.85841823,3089.1,3088.5,0.66861]
[1763551785268,4.85841823,3089.1,3089.0,0.1475869]
[1763551785966,3.73261,3089.1,3089.0,0.3935869]
[1763551786273,0.52481,3089.1,3089.0,0.1475869]
[1763551786572,0.52481,3089.1,3089.0,0.3935869]
[1763551787675,0.52481,3089.1,3089.0,0.1475869]
[1763551789172,0.52481,3089.1,3089.0,0.3935869]
[1763551790371,0.52481,3089.1,3089.0,0.1475869]
[1763551790564,1.65061823,3089.1,3089.0,0.1475869]
[1763551790964,1.65061823,3089.1,3089.0,0.3935869]
[1763551792874,0.52481,3089.1,3089.0,0.3935869]
[1763551794682,0.52481,3089.1,3089.0,0.1475869]
[1763551795481,1.29297058,3089.1,3089.0,0.0038869]
[1763551796486,0.52481,3089.1,3089.0,0.1475869]
[1763551796676,0.52481,3089.1,3089.0,0.3935869]
[1763551797780,0.52481,3089.1,3089.0,0.1475869]
[1763551798584,1.29320001,3089.1,3089.0,0.1475869]
[1763551800287,1.29320001,3089.1,3088.7,0.00323908]
[1763551800288,0.52486,3088.8,3088.7,0.00323908]
[1763551800489,4.50133304,3088.8,3088.7,0.00323908]
[1763551801395,4.50133304,3088.8,3088.7,0.00624066]
[1763551802489,4.50133304,3088.8,3088.7,0.25224066]
[1763551802791,3.2078,3088.8,3088.7,0.77712066]
[1763551802989,3.73266,3088.8,3088.7,0.77712066]
[1763551803185,0.52485,3088.9,3088.8,0.75426]
[1763551803585,0.52485,3088.9,3088.8,0.2294]
[1763551803989,0.52483,3089.0,3088.9,0.2294]
[1763551805792,1.29593982,3089.0,3088.9,0.2294]
[1763551806192,0.52486,3088.8,3088.7,0.00624066]
[1763551806393,3.73266,3088.8,3088.7,0.00624066]
[1763551806690,4.50376982,3088.8,3088.7,0.00624066]
[1763551807594,6.23744532,3088.8,3088.7,0.00624066]
[1763551809092,3.97890982,3088.8,3087.5,0.1437]
[1763551809288,2.31834325,3089.0,3088.0,0.3731]
[1763551809289,0.52498,3088.1,3088.0,0.3731]
[1763551809495,3.73277,3088.2,3088.1,0.2294]
[1763551809794,0.52498,3088.1,3088.0,0.1437]
[1763551810000,1.29810669,3088.1,3088.0,0.1437]
[1763551810295,1.29810669,3088.1,3088.0,0.14746616]
[1763551812496,1.29810669,3088.1,3088.0,0.00376616]
[1763551812795,2.45035015,3088.1,3088.0,0.00376616]
[1763551812995,2.45035015,3088.1,3088.0,0.14006616]
[1763551813195,1.29810669,3088.1,3088.0,0.14006616]
[1763551813496,2.45121686,3088.1,3088.0,0.14006616]
[1763551813694,2.45121686,3088.1,3088.0,0.00376616]
[1763551813992,2.45121686,3088.1,3088.0,0.36946616]
[1763551814199,2.45187741,3088.1,3088.0,0.36946616]
[1763551815289,2.45187741,3088.1,3088.0,0.14006616]
[1763551815496,2.45187741,3088.1,3088.0,0.36946616]
[1763551815698,1.29810669,3088.1,3088.0,0.36946616]
[1763551821198,1.29810669,3088.1,3088.0,0.00376616]
[1763551821700,2.45187741,3088.1,3088.0,0.00376616]
[1763551821901,1.29810669,3088.1,3088.0,0.00376616]
[1763551822492,0.52507,3087.6,3087.5,0.1437]
[1763551822700,4.50599669,3087.6,3087.5,0.1437]
[1763551823095,0.52515,3087.1,3087.0,3.5735]
[1763551823503,0.52924298,3087.1,3087.0,3.57758704]
[1763551824195,1.3036029,3087.1,3087.0,3.57758704]
[1763551824397,4.5114029,3087.1,3087.0,0.14038704]
[1763551824595,4.5114029,3087.1,3087.0,0.38268704]
[1763551825303,4.5114029,3087.1,3087.0,0.14038704]
[1763551825803,4.5114029,3087.1,3087.0,0.38268704]
[1763551826307,4.5114029,3087.1,3087.0,0.14038704]
[1763551827010,0.52524,3086.6,3086.5,3.5864]
[1763551827200,0.52524,3086.6,3086.5,0.1363]
[1763551827507,4.50639216,3086.6,3086.5,0.1363]
[1763551827901,1.29859216,3086.6,3086.5,0.3786]
[1763551828101,0.52524,3086.6,3086.5,0.38215567]
[1763551829809,0.52524,3086.6,3086.5,0.90740567]
[1763551830207,3.2078,3087.0,3086.9,0.2423]
[1763551830411,3.98043754,3087.0,3086.9,0.2423]
[1763551830602,4.50560754,3087.0,3086.9,0.2423]
[1763551830905,0.00409298,3087.1,3087.0,0.90877]
[1763551831103,3.21265861,3087.4,3087.3,0.76742]
[1763551831307,0.52505,3087.7,3087.6,0.2423]
[1763551831496,1.29813976,3087.7,3087.6,0.76737]
[1763551831697,3.73284,3087.8,3087.7,0.76735]
[1763551832209,3.73642889,3087.8,3087.7,0.76735]
[1763551833206,3.21138889,3087.8,3087.7,0.76735]
[1763551833406,0.00358889,3087.8,3087.7,6.76735]
[1763551833617,0.52983861,3088.1,3088.0,0.9146]
[1763551834117,0.00485861,3088.1,3088.0,0.9146]
[1763551834712,0.00786206,3088.1,3088.0,6.9146]
[1763551842524,3.96213,3089.0,3088.9,0.2461]
[1763551843417,3.73557825,3089.0,3088.9,0.77483833]
[1763551843926,3.21074825,3089.0,3088.9,0.77483833]
[1763551844124,0.00294825,3089.0,3088.9,0.77483833]
[1763551846126,0.52777825,3089.0,3088.9,0.77483833]
[1763551847831,0.00294825,3089.0,3088.9,0.77483833]
[1763551848032,0.52777825,3089.0,3088.9,0.77483833]
[1763551848432,0.00294825,3089.0,3088.9,0.77483833]
[1763551848633,0.52777825,3089.0,3088.9,0.77483833]
[1763551848835,0.00294825,3089.0,3088.9,0.77483833]
[1763551851530,0.2295,3088.7,3088.6,0.00485861]
[1763551851734,0.10404825,3089.0,3088.7,0.52487]
[1763551851933,0.52777825,3089.0,3088.9,0.77095]
[1763551852132,0.2295,3088.8,3088.7,0.52488]
[1763551852334,0.75438,3088.7,3088.6,0.00485861]
[1763551852531,0.75438,3088.7,3088.6,0.00862151]
[1763551853349,0.75438,3088.7,3088.6,0.25472151]
[1763551853640,0.52488,3088.7,3088.6,0.25472151]
[1763551854731,0.52488,3088.7,3088.6,0.77962151]
[1763551856230,0.75438,3088.7,3088.6,0.00862151]
[1763551857736,0.75438,3088.7,3088.6,0.77962151]
[1763551858242,0.75438,3088.7,3088.6,0.25472151]
[1763551859841,0.75438,3088.7,3088.6,0.77962151]
[1763551860735,0.75438,3088.7,3088.6,0.25472151]
[1763551862044,0.75438,3088.7,3088.6,0.77962151]
[1763551863747,1.53008936,3088.7,3088.6,0.77962151]
[1763551864247,0.52488,3088.7,3088.6,0.77962151]
[1763551864835,1.52563263,3088.7,3088.6,0.00862151]
[1763551865034,1.52563263,3088.7,3087.9,0.2416]
[1763551865035,0.75003,3088.0,3087.9,0.2416]
[1763551865234,0.225,3088.0,3087.9,0.76661]
[1763551866051,0.225,3088.0,3087.9,0.76937563]
[1763551866253,0.52502,3088.0,3087.9,0.76937563]
[1763551866751,0.52502,3088.0,3087.9,3.97717563]
[1763551867246,0.75002,3088.0,3087.9,3.97717563]
[1763551867847,0.225,3088.0,3087.9,3.97717563]
[1763551868046,0.75,3088.0,3087.9,3.97717563]
[1763551868251,0.75,3088.0,3087.9,0.76937563]
[1763551869351,0.75,3088.0,3087.9,0.24436563]
[1763551870053,0.75,3088.0,3087.9,0.00276563]
[1763551870054,0.8835,3088.0,3087.9,0.00276563]
[1763551870552,1.65867652,3088.0,3087.9,0.00276563]
[1763551872440,0.75005,3087.7,3087.6,0.00485861]
[1763551872651,3.95785,3087.7,3087.6,0.00485861]
[1763551873446,3.95785,3087.7,3087.6,0.00777442]
[1763551873958,3.95785,3087.7,3087.6,0.24937442]
[1763551874649,3.95785,3087.7,3087.6,0.00777442]
[1763551875450,3.95785,3087.7,3087.6,0.24937442]
[1763551876056,3.95785,3087.7,3087.6,0.00777442]
[1763551876752,5.08772743,3087.7,3087.6,0.00777442]
[1763551883262,5.86163839,3087.7,3087.6,0.00777442]
[1763551883762,0.7702,3086.8,3086.7,3.97682]
[1763551884761,1.37487743,3087.6,3087.5,0.2438]
[1763551884959,1.90290544,3087.6,3087.5,0.2438]
[1763551885160,0.77012,3087.5,3087.4,0.5251]
[1763551885464,0.77012,3087.5,3087.4,0.7689]
[1763551885759,0.77012,3087.5,3087.4,0.2438]
[1763551886356,0.77012,3087.5,3087.4,0.7689]
[1763551886653,0.77012,3087.5,3087.4,0.2438]
[1763551886858,0.77012,3087.5,3087.4,0.7689]
[1763551888760,0.77008,3087.5,3087.4,0.7689]
[1763551888967,0.77008,3087.5,3087.4,3.9767]
[1763551889458,0.00295801,3087.6,3087.5,0.90558]
[1763551891068,0.77302801,3087.6,3087.5,0.2438]
[1763551891261,0.77015,3087.2,3087.1,0.2438]
[1763551891473,0.77015,3087.1,3087.0,4.11347]
[1763551892967,0.245,3087.1,3087.0,4.11347]
[1763551893557,0.245,3087.1,3087.0,3.73297]
[1763551893757,0.77015,3087.1,3087.0,3.73297]
[1763551893967,0.77015,3087.1,3087.0,3.97337]
[1763551894369,0.77015,3087.1,3087.0,4.10767]
[1763551894778,0.52515,3087.1,3087.0,4.10767]
[1763551895460,0.00295801,3087.6,3087.0,4.10767]
[1763551895461,0.52513,3087.3,3087.2,0.76551]
[1763551895764,0.76261,3087.5,3087.4,0.76548]
[1763551895968,1.53858011,3087.5,3087.4,0.2404]
[1763551896371,0.90467011,3087.5,3087.1,0.2404]
[1763551896557,0.00295801,3087.6,3087.3,0.2404]
[1763551896558,1.53858011,3087.4,3087.3,0.2404]
[1763551897768,1.53858011,3087.4,3087.3,0.76552]
[1763551898977,1.53858011,3087.4,3087.3,0.2404]
[1763551900370,1.53858011,3087.4,3087.3,0.76552]
[1763551900561,1.53858011,3087.4,3087.3,0.2404]
[1763551900968,1.53858011,3087.4,3087.3,0.76552]
[1763551901371,1.53858011,3087.4,3087.3,0.2404]
[1763551901673,1.53858011,3087.4,3087.3,0.76552]
[1763551905068,1.53858011,3087.4,3087.3,0.2404]
[1763551905268,1.53858011,3087.4,3087.3,0.76552]
[1763551905574,1.53858011,3087.4,3087.3,0.2404]
[1763551905876,0.7627,3086.8,3086.7,0.00329265]
[1763551906373,1.53867011,3086.8,3086.7,0.00329265]
[1763551909170,0.76286,3086.0,3085.9,0.2404]
[1763551909567,0.76286,3085.9,3085.8,0.76576]
[1763551909977,0.76286,3085.9,3085.8,0.2404]
[1763551910277,0.1448,3086.0,3085.6,0.76581]
[1763551910278,0.76291,3085.7,3085.6,0.76581]
[1763551910476,0.76291,3085.7,3085.6,0.76973057]
[1763551911264,0.2375,3085.7,3085.6,0.76973057]
[1763551912180,0.76289,3085.7,3085.6,0.00392057]
[1763551912678,0.76289,3085.7,3085.6,0.52933057]
[1763551912874,0.76289,3085.7,3085.6,0.00392057]
[1763551913582,0.76289,3085.7,3085.6,0.24432057]
[1763551914180,0.1173,3085.5,3084.5,0.1343]
[1763551914378,0.2375,3085.1,3085.0,0.3747]
[1763551914579,0.76301,3085.1,3085.0,0.3747]
[1763551914777,0.76301,3085.1,3085.0,0.90021]
[1763551914980,0.76301,3085.1,3085.0,0.3747]
[1763551915280,0.00239852,3085.1,3085.0,0.90327142]
[1763551917085,3.97066,3085.9,3085.8,0.2404]
[1763551917778,0.2375,3085.8,3085.5,0.65972]
[1763551917984,0.52541,3085.6,3085.5,0.90012]
[1763551918188,0.52917176,3085.6,3085.5,0.90012]
[1763551918381,0.00376176,3085.6,3085.5,0.90012]
[1763551918883,0.52533,3086.1,3086.0,0.90004]
[1763551919183,0.52531,3086.2,3086.1,0.52531]
[1763551919383,0.52531,3086.2,3086.1,0.76571]
[1763551919784,0.52763199,3086.2,3086.1,0.76571]
[1763551919990,0.52763199,3086.2,3086.1,0.2404]
[1763551920181,0.76513199,3086.2,3086.1,0.2404]
[1763551920577,0.76513199,3086.2,3086.1,0.76572]
[1763551921974,0.52763199,3086.2,3086.1,0.76572]
[1763551922173,0.00232199,3086.2,3086.1,0.76572]
[1763551923781,0.00232199,3086.2,3086.1,3.97352]
[1763551925085,0.52522,3086.7,3086.2,0.76041]
[1763551925279,3.2078,3086.8,3086.7,0.76032]
[1763551926087,3.21145482,3086.8,3086.7,0.76032]
[1763551926784,0.00365482,3086.8,3086.7,3.96812]
[1763551932496,0.76245482,3086.8,3086.7,3.2078]
[1763551932693,0.76245482,3086.8,3086.7,3.4429]
[1763551933193,0.00365482,3086.8,3086.7,3.96812]
[1763551933393,0.23725482,3086.8,3086.7,1.73302]
[1763551933692,0.76245482,3086.8,3086.7,1.2078]
[1763551934287,0.76245482,3086.8,3086.7,1.73302]
[1763551934996,0.76245482,3086.8,3086.7,1.96812]
[1763551935198,0.76245482,3086.8,3086.7,1.4429]
[1763551936398,0.23725482,3086.8,3086.7,1.96812]
[1763551936597,0.00365482,3086.8,3086.7,1.96812]
[1763551936795,0.52885482,3086.8,3086.7,1.96812]
[1763551936985,0.76245482,3086.8,3086.7,1.96812]
[1763551937795,0.23725482,3086.8,3086.7,1.96812]
[1763551937994,0.52885482,3086.8,3086.7,1.96812]
[1763551938702,0.00365482,3086.8,3086.7,1.96812]
[1763551939098,0.52885482,3086.8,3086.7,1.96812]
[1763551941403,0.00365482,3086.8,3086.7,1.96812]
[1763551942902,0.52885482,3086.8,3086.7,1.96812]
[1763551943404,0.00365482,3086.8,3086.7,1.96812]
[1763551945109,3.2078,3087.3,3087.2,0.76504]
[1763551945309,3.73292,3087.3,3087.2,0.76504]
[1763551945607,3.2078,3087.3,3087.2,0.76504]
[1763551946308,3.211605,3087.3,3087.2,0.76855045]
[1763551947109,3.736725,3087.3,3087.2,0.76855045]
[1763551947997,3.959325,3087.3,3087.2,0.76855045]
[1763551948197,3.736725,3087.3,3087.2,0.76855045]
[1763551948401,3.736725,3087.3,3087.2,0.24341045]
[1763551948605,3.959325,3087.3,3087.2,0.00351045]
[1763551949106,4.73470294,3087.3,3087.2,0.00351045]
[1763551950910,5.89329622,3087.3,3087.2,0.00351045]
[1763551952303,4.73470294,3087.3,3087.2,0.00351045]
[1763551953214,5.89324453,3087.3,3087.2,0.00351045]
[1763551954504,3.98698294,3087.3,3087.2,0.76855045]
[1763551955305,3.211605,3087.3,3087.2,0.76855045]
[1763551955616,0.00485861,3087.6,3087.5,0.90388]
[1763551956712,0.00893576,3087.6,3087.5,0.90388]
[1763551957108,0.52497,3088.2,3088.1,0.2355]
[1763551957310,1.30170982,3088.2,3088.1,0.2355]
[1763551958314,0.52821391,3088.2,3088.1,0.2355]
[1763551958708,0.00324391,3088.2,3088.1,0.76048]
[1763551962718,0.22594391,3088.2,3088.1,0.76048]
[1763551963220,0.52821391,3088.2,3088.1,0.76048]
[1763551964516,0.74768,3088.1,3088.0,3.2078]
[1763551965322,0.74775,3087.8,3087.7,0.76055]
[1763551965520,0.74775,3087.8,3087.7,0.2355]
[1763551966116,0.52502,3087.9,3087.8,0.76053]
[1763551966421,0.74772,3087.9,3087.8,0.76053]
[1763551969627,0.52502,3087.9,3087.8,0.76053]
[1763551970425,0.74772,3087.9,3087.8,0.76053]
[1763551971027,0.74773,3087.8,3087.7,0.52505]
[1763551971226,0.74775,3087.7,3087.6,3.96836]
[1763551971424,0.74775,3087.7,3087.6,3.2078]
[1763551971627,0.88968,3087.5,3087.4,0.9587]
[1763551971931,0.88968,3087.5,3087.4,0.5251]
[1763551972724,0.88968,3087.5,3087.4,0.7606]
[1763551973232,0.00324391,3088.2,3087.8,0.2355]
[1763551973427,0.78517219,3088.1,3087.9,0.2355]
[1763551973722,0.52821391,3088.2,3087.6,3.2078]
[1763551973723,0.2227,3087.7,3087.6,3.4433]
[1763551973928,0.2227,3087.7,3087.6,3.96837]
[1763551974642,0.74775,3087.7,3087.6,3.96837]
[1763551974835,0.2227,3087.7,3087.6,3.96837]
[1763551975842,0.74775,3087.7,3087.6,3.96837]
[1763551976842,0.52504,3087.8,3087.7,0.76051]
[1763551977647,0.52503,3087.9,3087.8,0.76053]
[1763551979550,0.525,3088.1,3088.0,0.52499]
[1763551979740,1.53320751,3088.1,3088.0,0.76049]
[1763551980045,1.31050751,3088.1,3088.0,0.90379]
[1763551980442,0.00324391,3088.2,3088.1,0.2355]
[1763551980641,0.00324391,3088.2,3088.1,0.76048]
[1763551981042,0.1419,3088.0,3087.6,3.2078]
[1763551981245,0.74772,3087.9,3087.8,0.76053]
[1763551981444,0.74772,3087.9,3087.8,0.2355]
[1763551981648,0.74772,3087.9,3087.8,0.76053]
[1763551981848,0.2227,3087.9,3087.8,0.76053]
[1763551982150,0.2293,3088.1,3088.0,0.90539]
[1763551982740,0.75428,3088.1,3088.0,0.90539]
[1763551983147,0.2293,3088.1,3088.0,0.90539]
[1763551983450,0.00324391,3088.2,3088.1,0.77158]
[1763551984346,0.75751391,3088.2,3088.1,0.77158]
[1763551984648,0.75751391,3088.2,3088.1,0.2466]
[1763551985948,0.52498,3088.1,3088.0,0.65878]
[1763551986138,0.52498,3088.1,3088.0,0.90538]
[1763551986748,0.00324391,3088.2,3088.1,0.77158]
[1763551989351,0.00485861,3088.5,3088.4,0.77153]
[1763551990351,0.00853459,3088.5,3088.4,0.77153]
[1763551991750,0.00853459,3088.5,3088.4,3.97933]
[1763551992452,0.53344459,3088.5,3088.4,3.97933]
[1763551992956,0.00853459,3088.5,3088.4,3.97933]
[1763551993646,0.76274459,3088.5,3088.4,3.4544]
[1763551993841,0.75427,3088.3,3088.2,0.2466]
[1763551994050,0.75427,3088.2,3088.1,0.52982861]
[1763551994545,0.75427,3088.2,3088.1,0.00485861]
[1763551997455,0.2293,3088.2,3088.1,0.77643861]
[1763551997657,0.75425,3088.3,3088.2,0.2466]
[1763551998454,0.53345459,3088.5,3088.4,0.77153]
[1763551998650,0.00853459,3088.5,3088.4,0.77153]
[1763551999452,0.37793459,3088.5,3088.4,0.52493]
[1763551999653,0.2293,3088.3,3088.2,0.77156]
[1763551999854,0.2293,3088.2,3088.1,0.85975861]
[1763552000052,0.2293,3088.2,3088.1,1.63131861]
[1763552000255,0.75426,3088.3,3088.2,0.2466]
[1763552000450,0.75426,3088.3,3088.2,0.77157]
[1763552000645,0.75425,3088.3,3088.2,0.77157]
[1763552001658,0.2293,3088.3,3088.2,0.77157]
[1763552002559,0.75425,3088.3,3088.2,0.77157]
[1763552002761,0.75424,3088.4,3088.3,0.77155]
[1763552003062,0.53345459,3088.5,3088.4,0.77153]
[1763552004859,0.76275459,3088.5,3088.4,0.77153]
[1763552005061,0.53345459,3088.5,3088.4,0.77153]
[1763552005759,0.00853459,3088.5,3088.4,0.77153]
[1763552006061,0.76034459,3088.5,3088.4,0.77153]
[1763552006364,0.00853459,3088.5,3088.4,0.77153]
[1763552007064,0.00853459,3088.5,3088.4,3.97933]
[1763552008760,0.52481,3089.2,3089.1,0.76478]
[1763552008961,3.73254,3089.6,3089.5,0.90084]
[1763552009263,3.2078,3089.6,3089.5,0.90084]
[1763552009654,3.96170072,3089.6,3089.5,0.37931136]
[1763552010051,5.09058347,3089.6,3089.5,0.00321136]